bitfinex/quotes_ETHUSD_20241024
["timestamp","ask_amount","ask_price","bid_price","bid_amount"]
[1729794938861,3.95258,2530.0,2529.6,5.2615273]
[1729794939031,3.95258,2530.0,2529.6,5.8115273]
[1729794939032,0.1059852,2529.7,2529.6,5.8115273]
[1729794939232,3.95258,2530.0,2529.6,5.2615273]
[1729794939427,0.1059852,2529.7,2529.6,5.8115273]
[1729794939739,3.95258,2530.0,2529.6,5.2615273]
[1729794939944,0.1059852,2529.7,2529.6,4.50316]
[1729794940448,3.95258,2530.0,2529.6,4.50316]
[1729794940653,0.1059852,2529.7,2529.6,4.50316]
[1729794940949,4.73914,2530.1,2529.7,3.953]
[1729794942146,4.73914,2530.1,2529.6,4.50309]
[1729794942345,8.69169,2530.1,2529.6,5.4161243]
[1729794942558,4.73914,2530.1,2529.6,9.3692043]
[1729794942727,4.73914,2530.1,2529.6,5.4161143]
[1729794942934,4.73914,2530.1,2529.7,3.953]
[1729794943462,6.36014933,2530.1,2529.7,3.953]
[1729794943641,4.73914,2530.1,2529.7,3.953]
[1729794944261,0.10607995,2530.0,2529.7,3.953]
[1729794944704,0.10607995,2530.0,2529.9,5.29562]
[1729794944856,6.35598933,2530.5,2530.0,3.95242]
[1729794945190,1.62100933,2530.4,2530.0,3.95242]
[1729794946366,5.57296933,2530.4,2530.0,3.95242]
[1729794947378,5.52296933,2530.4,2530.0,3.95242]
[1729794947577,1.57100933,2530.4,2529.9,1.3429]
[1729794947816,1.57100933,2530.4,2529.9,9.66244417]
[1729794947817,3.9521,2530.3,2529.9,9.66244417]
[1729794948071,3.95203,2530.4,2530.0,3.95253]
[1729794948571,5.57263933,2530.6,2530.1,3.9523]
[1729794948864,3.9519,2530.5,2530.1,0.55]
[1729794949076,5.57290933,2530.5,2530.1,0.55]
[1729794949274,3.95197,2530.4,2530.1,0.55]
[1729794951077,3.95197,2530.4,2530.0,0.55]
[1729794951078,5.57297933,2530.4,2530.0,0.55]
[1729794951277,1.62100933,2530.3,2530.0,0.55]
[1729794951584,5.57324933,2530.3,2530.0,0.55]
[1729794951776,3.95226,2530.2,2530.0,0.55]
[1729794951971,1.62100933,2530.3,2530.0,0.55]
[1729794952282,5.57313933,2530.3,2530.0,0.55]
[1729794953275,5.57313933,2530.3,2529.9,0.7929]
[1729794953276,5.57326933,2530.2,2529.9,0.7929]
[1729794953478,3.95268,2530.0,2529.7,0.7702]
[1729794954552,3.63800863,2530.0,2529.7,0.7702]
[1729794954879,0.10540007,2529.9,2529.7,0.7702]
[1729794955082,5.6791694,2529.9,2529.5,0.8219]
[1729794955260,3.953,2529.8,2529.5,0.8219]
[1729794955447,3.95304,2529.7,2529.5,0.8219]
[1729794955658,4.05823366,2529.7,2529.5,0.8219]
[1729794956047,3.95319,2529.6,2529.5,0.8219]
[1729794956242,4.05838223,2529.6,2529.3,0.8252]
[1729794956861,4.05838223,2529.6,2529.3,3.8252]
[1729794957063,0.10519223,2529.6,2529.3,5.24311335]
[1729794957400,0.10519223,2529.6,2529.3,9.19673335]
[1729794959681,3.95341,2529.5,2529.2,0.55]
[1729794959894,0.10514666,2529.5,2529.2,4.50381]
[1729794960669,0.10514666,2529.5,2529.2,8.45754]
[1729794960872,0.10514666,2529.5,2529.3,3.95365]
[1729794961191,3.95306,2529.7,2529.3,3.95365]
[1729794961391,0.10501263,2529.4,2529.2,4.50373]
[1729794961559,3.95325,2529.6,2529.2,5.81076242]
[1729794961760,0.10492227,2529.3,2529.2,3.55]
[1729794961958,4.75416,2529.5,2529.2,1.5724517]
[1729794962162,0.10492227,2529.3,2529.1,0.7871]
[1729794962460,3.95351,2529.4,2529.1,1.3371]
[1729794962461,0.10491362,2529.2,2529.1,1.3371]
[1729794962684,3.95351,2529.4,2529.1,1.3371]
[1729794962986,0.10487992,2529.2,2529.1,1.3371]
[1729794963188,4.75417,2529.5,2529.1,5.29107]
[1729794963352,0.104981,2529.2,2529.1,5.29107]
[1729794963556,4.75417,2529.5,2529.1,5.29107]
[1729794963791,0.104981,2529.2,2529.1,5.29107]
[1729794963996,4.75417,2529.5,2529.1,1.3371]
[1729794964156,0.10487992,2529.2,2529.1,1.3371]
[1729794964356,3.95351,2529.4,2528.8,1.60554421]
[1729794964357,7.24700942,2529.4,2528.8,1.60554421]
[1729794964595,3.95428,2528.9,2528.8,0.7801]
[1729794964798,3.95423,2529.0,2528.6,5.7579179]
[1729794964961,0.10487162,2528.9,2528.6,4.73485]
[1729794965169,0.10487162,2528.9,2528.6,8.6895]
[1729794965490,0.10487162,2528.9,2528.6,4.73475]
[1729794965670,3.95416,2529.0,2528.6,4.73475]
[1729794965864,0.10488416,2528.8,2528.6,4.73475]
[1729794966074,3.95455,2528.8,2528.5,0.82544421]
[1729794966280,4.70965,2528.8,2528.4,0.8014]
[1729794966457,0.10469268,2528.7,2528.4,1.82492147]
[1729794966667,4.70965,2528.8,2528.4,5.77996147]
[1729794966991,4.70965,2528.8,2528.4,0.8014]
[1729794967162,8.66421,2528.8,2528.4,1.82462289]
[1729794967560,8.66421,2528.8,2528.4,0.8014]
[1729794967809,4.70965,2528.8,2528.4,0.8014]
[1729794968159,3.95472,2528.7,2528.3,3.0]
[1729794968398,3.95477,2528.6,2528.3,1.02294515]
[1729794968712,3.95472,2528.7,2528.1,3.95539]
[1729794968868,3.95472,2528.7,2528.2,0.55]
[1729794968869,3.95489,2528.6,2528.2,0.55]
[1729794969072,3.95507,2528.4,2528.1,0.55]
[1729794969266,4.05899757,2528.5,2528.1,0.55]
[1729794969594,4.05899757,2528.5,2528.1,4.50552]
[1729794973156,0.10406757,2528.5,2528.1,0.55]
[1729794973356,3.95508,2528.4,2528.0,3.7798]
[1729794973568,3.95508,2528.4,2528.0,1.55336]
[1729794973569,4.05893128,2528.4,2528.0,1.55336]
[1729794973796,8.01411128,2528.4,2528.0,1.55336]
[1729794973999,8.01408128,2528.4,2528.0,1.55336]
[1729794974218,4.05893128,2528.4,2528.0,1.55336]
[1729794974421,3.95546,2528.2,2527.8,0.8269]
[1729794974922,0.10357998,2528.1,2527.8,0.8269]
[1729794975225,4.05919998,2528.1,2527.8,0.8269]
[1729794975521,4.05914998,2528.1,2527.5,3.95639]
[1729794975691,3.95569,2528.0,2527.5,6.120192]
[1729794976008,0.1031364,2528.0,2527.6,0.07911732]
[1729794976208,0.1031364,2528.0,2527.5,6.120192]
[1729794976423,0.1031364,2528.0,2527.7,0.55]
[1729794977599,3.9557,2528.0,2527.7,0.55]
[1729794977794,0.10304594,2527.9,2527.7,0.55]
[1729794978323,0.10304594,2527.9,2527.5,0.8269]
[1729794978324,3.95609,2527.8,2527.5,0.8269]
[1729794978627,4.05876579,2527.8,2527.5,0.8269]
[1729794978823,8.78561579,2527.8,2527.3,0.8309]
[1729794978995,8.78561579,2527.8,2527.3,1.93903494]
[1729794979197,8.78562579,2527.8,2527.3,1.93903494]
[1729794979427,4.82946579,2527.8,2527.3,1.93903494]
[1729794979590,8.78557579,2527.8,2527.3,1.93903494]
[1729794979990,4.82946579,2527.8,2527.4,0.55]
[1729794981432,4.05870579,2527.8,2527.4,0.55]
[1729794982035,3.95619,2527.7,2527.4,0.55]
[1729794982317,0.10239464,2527.6,2527.4,0.55]
[1729794982831,0.10239464,2527.6,2527.4,5.340332]
[1729794983316,4.73379,2528.0,2527.4,9.296892]
[1729794983526,0.10205017,2527.5,2527.4,9.296892]
[1729794983693,4.73379,2528.0,2527.4,9.296892]
[1729794983903,0.10205017,2527.5,2527.4,9.296892]
[1729794984106,4.73379,2528.0,2527.4,9.296892]
[1729794984412,8.68957,2528.0,2527.6,0.55]
[1729794985133,4.73379,2528.0,2527.6,0.55]
[1729794985620,8.68962,2528.0,2527.6,0.55]
[1729794985788,3.95586,2527.9,2527.6,0.55]
[1729794985988,4.05827207,2527.9,2527.6,0.55]
[1729794986399,3.9561,2527.8,2527.4,0.55]
[1729794986609,3.95617,2527.7,2527.4,0.55]
[1729794986810,4.05840113,2527.7,2527.4,0.55]
[1729794987031,4.05840113,2527.7,2527.4,1.78736174]
[1729794987229,0.10223113,2527.7,2527.4,5.74397174]
[1729794987731,3.95524,2528.3,2527.4,5.74397174]
[1729794987732,0.7538,2528.3,2527.6,5.33782]
[1729794987931,3.95545,2528.2,2527.7,4.58525519]
[1729794988120,3.95545,2528.2,2527.7,5.85191365]
[1729794988933,3.95525,2528.3,2527.9,0.55]
[1729794989428,3.95546,2528.2,2527.9,0.55]
[1729794989631,4.05816921,2528.2,2527.9,0.55]
[1729794989936,0.90405113,2528.2,2527.8,0.7625]
[1729794990110,3.9558,2528.0,2527.6,0.8269]
[1729794990630,0.10243787,2527.9,2527.6,0.8269]
[1729794991297,0.10243787,2527.9,2527.6,4.78322]
[1729794991899,0.10243787,2527.9,2527.6,0.8269]
[1729794992707,0.10243787,2527.9,2527.7,4.50603]
[1729794992910,3.95537,2528.3,2527.8,4.489293]
[1729794993516,3.95537,2528.3,2527.9,0.55]
[1729794994039,3.95539,2528.2,2527.9,0.55]
[1729794994215,3.95559,2528.1,2527.8,0.55]
[1729794994716,3.95539,2528.2,2527.8,4.50597]
[1729794995046,7.91087,2528.2,2527.8,4.50597]
[1729794995702,3.95555,2528.1,2527.7,0.55]
[1729794996039,3.95555,2528.1,2527.7,5.735096]
[1729794996611,3.95538,2528.2,2527.7,5.735096]
[1729794996817,0.10252832,2528.0,2527.7,5.735096]
[1729794997022,0.10261877,2528.1,2527.7,5.735096]
[1729794997342,3.95538,2528.2,2527.8,3.956]
[1729794997544,0.10252832,2528.0,2527.7,5.735096]
[1729794997717,3.95555,2528.1,2527.9,0.55]
[1729794998104,3.95555,2528.1,2527.8,0.55]
[1729794998310,3.95555,2528.1,2527.7,1.228946]
[1729794998535,3.95576,2528.0,2527.7,1.228946]
[1729794999404,3.95591,2527.9,2527.6,0.8269]
[1729794999606,3.95602,2527.8,2527.6,0.8269]
[1729795000134,0.8254,2528.0,2527.6,0.8269]
[1729795000372,0.10225693,2527.7,2527.6,0.8269]
[1729795000531,3.95586,2527.9,2527.6,0.8269]
[1729795000734,0.10225693,2527.7,2527.6,0.8269]
[1729795000942,3.95601,2527.8,2527.6,0.8269]
[1729795001131,0.10225693,2527.7,2527.6,0.8269]
[1729795001310,3.95586,2527.9,2527.6,0.8269]
[1729795001512,0.10225693,2527.7,2527.6,0.8269]
[1729795001711,3.95586,2527.9,2527.6,0.8269]
[1729795001944,0.10225693,2527.7,2527.6,0.8269]
[1729795002147,3.95586,2527.9,2527.6,0.8269]
[1729795002309,0.10225693,2527.7,2527.6,0.8269]
[1729795002509,3.95586,2527.9,2527.6,0.8269]
[1729795002818,0.10226426,2527.7,2527.6,0.8269]
[1729795003023,3.95545,2528.2,2527.7,4.50615]
[1729795003247,3.95555,2528.1,2527.7,4.50615]
[1729795003948,0.10253566,2528.0,2527.7,4.50615]
[1729795004468,4.05823566,2528.0,2527.7,0.55]
[1729795005429,7.91152,2528.0,2527.7,0.55]
[1729795005628,0.1024452,2527.9,2527.7,0.55]
[1729795006060,0.1024452,2527.9,2527.6,0.8269]
[1729795006061,4.0583352,2527.9,2527.6,0.8269]
[1729795006862,0.1024452,2527.9,2527.6,4.7832]
[1729795007069,0.1024452,2527.9,2527.6,5.74761646]
[1729795007562,4.0583452,2527.9,2527.6,1.79131646]
[1729795007759,0.1024452,2527.9,2527.6,5.74762646]
[1729795008060,0.1024452,2527.9,2527.6,1.79131646]
[1729795008271,4.0582952,2527.9,2527.6,1.79131646]
[1729795008564,4.0582952,2527.9,2527.6,1.84955006]
[1729795008726,4.0582952,2527.9,2527.6,0.8269]
[1729795009679,0.1024452,2527.9,2527.6,0.8269]
[1729795010058,0.1024452,2527.9,2527.6,4.78321]
[1729795010228,4.0583952,2527.9,2527.6,0.8269]
[1729795010426,4.0583952,2527.9,2527.7,1.02378258]
[1729795010636,4.0583952,2527.9,2527.6,0.8269]
[1729795010840,0.1024452,2527.9,2527.6,0.8269]
[1729795011531,0.1024452,2527.9,2527.7,1.02483582]
[1729795011750,0.1024452,2527.9,2527.7,1.02490853]
[1729795012192,4.0583452,2527.9,2527.7,1.02490853]
[1729795012391,4.0583452,2527.9,2527.6,0.8269]
[1729795013550,4.0583452,2527.9,2527.7,1.02583014]
[1729795013757,4.0583452,2527.9,2527.6,0.8269]
[1729795014472,8.0143252,2527.9,2527.5,0.82539857]
[1729795014686,8.0143252,2527.9,2527.6,1.02619613]
[1729795014987,0.98412772,2527.9,2527.5,0.82539857]
[1729795015291,4.77781,2527.5,2527.2,0.82539857]
[1729795015450,3.95692,2527.3,2527.1,0.82539857]
[1729795015651,3.95692,2527.3,2527.0,0.82539857]
[1729795015852,4.05829599,2527.2,2527.1,1.0269208]
[1729795016297,4.05829599,2527.2,2526.9,0.82539857]
[1729795016493,4.05829599,2527.2,2527.0,1.02716045]
[1729795016657,4.05829599,2527.2,2526.9,0.82539857]
[1729795016980,4.05829599,2527.2,2527.0,1.02690505]
[1729795016981,0.10129599,2527.2,2527.0,1.02690505]
[1729795017184,3.95704,2527.2,2527.0,1.02690505]
[1729795017391,0.09761452,2527.1,2527.0,1.02690505]
[1729795017590,0.09761452,2527.1,2527.0,1.02681694]
[1729795018056,0.09761452,2527.1,2527.0,8.53103232]
[1729795018251,0.8212,2527.5,2527.1,4.50703]
[1729795018489,3.95633,2527.6,2527.2,4.98352478]
[1729795018691,4.72546,2527.7,2527.2,3.95685]
[1729795018868,4.72546,2527.7,2527.2,3.95684]
[1729795019064,4.72546,2527.7,2527.3,1.02654643]
[1729795019263,0.7692,2527.7,2527.4,3.95663]
[1729795019488,3.95611,2527.8,2527.4,3.95663]
[1729795019861,3.95611,2527.8,2527.5,1.02649406]
[1729795020065,3.95611,2527.8,2527.5,1.02651614]
[1729795020365,3.95611,2527.8,2527.4,3.95663]
[1729795020689,3.95611,2527.8,2527.5,1.02668611]
[1729795020892,3.95611,2527.8,2527.4,4.78202857]
[1729795021190,0.0979904,2527.7,2527.6,3.95632]
[1729795021360,3.95578,2528.0,2527.6,4.98277139]
[1729795021690,0.09825432,2527.7,2527.6,3.95632]
[1729795021870,3.95578,2528.0,2527.6,4.98280106]
[1729795022071,3.95578,2528.0,2527.7,0.8181]
[1729795022395,3.95578,2528.0,2527.7,1.84450023]
[1729795022581,3.95578,2528.0,2527.7,0.8181]
[1729795024011,3.95578,2528.0,2527.7,1.84428478]
[1729795024320,3.95578,2528.0,2527.7,0.8181]
[1729795024557,0.09824134,2527.9,2527.7,0.8181]
[1729795024724,4.05415134,2527.9,2527.7,1.02609475]
[1729795024883,4.05415134,2527.9,2527.6,1.02609475]
[1729795025082,4.05415134,2527.9,2527.5,0.82539857]
[1729795025309,0.09824134,2527.9,2527.6,1.026194]
[1729795025592,0.09824134,2527.9,2527.5,4.78173857]
[1729795025791,0.09824134,2527.9,2527.6,1.02614071]
[1729795025992,0.09824134,2527.9,2527.5,10.11796666]
[1729795026300,0.09824134,2527.9,2527.6,1.02611942]
[1729795026616,0.09824134,2527.9,2527.5,6.16156666]
[1729795026821,0.09824134,2527.9,2527.6,1.02613032]
[1729795027126,0.09824134,2527.9,2527.5,10.11794666]
[1729795027325,0.09824134,2527.9,2527.6,1.0261441]
[1729795027499,0.09824134,2527.9,2527.5,10.11794666]
[1729795027821,4.05416134,2527.9,2527.6,1.02611556]
[1729795028128,4.05416134,2527.9,2527.5,4.78173857]
[1729795028422,4.05416134,2527.9,2527.6,1.02618753]
[1729795028630,4.05416134,2527.9,2527.5,0.82539857]
[1729795028790,4.05416134,2527.9,2527.6,1.02621194]
[1729795029122,3.95619,2527.7,2527.4,0.82539857]
[1729795029423,0.09825225,2527.6,2527.5,1.02631697]
[1729795029629,3.95619,2527.7,2527.5,1.02631697]
[1729795029793,3.95619,2527.7,2527.4,0.82539857]
[1729795029988,3.95619,2527.7,2527.5,1.02632094]
[1729795030194,3.95619,2527.7,2527.4,0.82539857]
[1729795030491,0.0982137,2527.6,2527.5,1.02634259]
[1729795030693,4.76662,2527.8,2527.5,1.02634259]
[1729795030892,0.09827218,2527.7,2527.4,4.78201857]
[1729795031088,4.76662,2527.8,2527.5,1.02652034]
[1729795031408,0.09827218,2527.7,2527.4,4.78201857]
[1729795031608,4.76662,2527.8,2527.5,1.02662275]
[1729795031609,0.8106,2527.8,2527.5,1.02662275]
[1729795031932,4.76663,2527.8,2527.4,6.02507409]
[1729795032228,0.09831329,2527.7,2527.6,3.95623]
[1729795032425,0.09831329,2527.7,2527.6,5.77141283]
[1729795032631,4.73707,2528.2,2527.6,8.33385885]
[1729795032801,4.73707,2528.2,2527.8,3.956]
[1729795032989,0.09884817,2528.1,2527.7,0.07911902]
[1729795033336,0.09884817,2528.1,2527.8,4.50591]
[1729795033531,0.09884817,2528.1,2527.8,0.55]
[1729795033691,3.9557,2528.0,2527.7,1.02611258]
[1729795034025,0.0989255,2527.9,2527.7,0.55]
[1729795034246,3.95563,2528.1,2527.7,0.55]
[1729795034389,0.09883504,2527.8,2527.7,5.49751168]
[1729795034593,3.95563,2528.1,2527.7,6.52362472]
[1729795034899,3.95563,2528.1,2527.7,5.49751168]
[1729795035103,0.09901596,2528.0,2527.7,5.49751168]
[1729795035486,0.09901596,2528.0,2527.7,1.54137168]
[1729795035487,4.05481596,2528.0,2527.7,1.54137168]
[1729795036498,4.05481596,2528.0,2527.7,0.55]
[1729795037725,0.09901596,2528.0,2527.7,4.50608]
[1729795037923,8.69251,2528.2,2527.7,4.50608]
[1729795038151,0.09914014,2528.1,2527.7,4.50608]
[1729795038357,3.9557,2528.0,2527.7,0.55]
[1729795038557,4.05474969,2528.0,2527.7,0.55]
[1729795039244,4.05474969,2528.0,2527.6,1.61399857]
[1729795039449,4.05474969,2528.0,2527.7,1.02625955]
[1729795039623,4.05474969,2528.0,2527.6,1.61399857]
[1729795039963,4.05474969,2528.0,2527.7,1.02629091]
[1729795040119,4.05474969,2528.0,2527.6,1.61399857]
[1729795040323,4.05474969,2528.0,2527.7,1.02626855]
[1729795040659,3.95587,2527.9,2527.6,1.61399857]
[1729795040821,3.95587,2527.9,2527.7,1.02630348]
[1729795041017,0.0986084,2527.8,2527.6,1.61399857]
[1729795041222,0.0986084,2527.8,2527.7,1.02626849]
[1729795042064,4.8653084,2527.8,2527.7,1.02626849]
[1729795042235,4.8653084,2527.8,2527.5,0.82539857]
[1729795042444,4.8653084,2527.8,2527.6,1.02643398]
[1729795042661,4.8653084,2527.8,2527.5,0.82539857]
[1729795042959,3.95616,2527.7,2527.4,3.82539857]
[1729795043159,0.09856947,2527.7,2527.5,1.02651962]
[1729795043360,4.7667,2527.8,2527.6,1.02651962]
[1729795043536,0.09851212,2527.6,2527.5,0.82539857]
[1729795043740,4.7667,2527.8,2527.5,1.85189613]
[1729795044066,4.7667,2527.8,2527.6,1.02649756]
[1729795044228,4.7667,2527.8,2527.5,0.82539857]
[1729795044576,4.7667,2527.8,2527.6,1.02649081]
[1729795044888,4.7667,2527.8,2527.5,0.82539857]
[1729795045064,4.7667,2527.8,2527.6,1.02646958]
[1729795045368,4.7667,2527.8,2527.5,0.82539857]
[1729795045564,4.7667,2527.8,2527.6,1.02646219]
[1729795045870,4.7667,2527.8,2527.5,0.82539857]
[1729795046053,0.0986026,2527.7,2527.6,1.02645329]
[1729795046233,0.0986026,2527.7,2527.6,8.73965723]
[1729795046433,4.76225,2528.1,2527.7,3.95605]
[1729795046434,3.95555,2528.1,2527.7,3.95605]
[1729795046634,0.09884088,2528.0,2527.8,1.0261988]
[1729795046840,0.09884088,2528.0,2527.7,5.57983537]
[1729795047042,0.09884088,2528.0,2527.7,7.0165765]
[1729795047567,0.09884088,2528.0,2527.7,5.39279113]
[1729795047868,0.09884088,2528.0,2527.7,7.0165765]
[1729795048668,0.09884088,2528.0,2527.7,5.39279113]
[1729795049034,0.09884088,2528.0,2527.7,7.0165765]
[1729795049297,0.09884088,2528.0,2527.8,1.94110955]
[1729795049571,0.09884088,2528.0,2527.8,0.91496751]
[1729795050168,0.09884088,2528.0,2527.7,5.39289113]
[1729795050469,0.09884088,2528.0,2527.8,1.02613812]
[1729795050669,0.09884088,2528.0,2527.7,5.39289113]
[1729795052766,4.05460088,2528.0,2527.7,1.43674113]
[1729795052968,4.05460088,2528.0,2527.6,6.08937857]
[1729795053215,4.05460088,2528.0,2527.7,1.02615922]
[1729795053395,4.05460088,2528.0,2527.6,6.08937857]
[1729795053590,4.05460088,2528.0,2527.7,1.02617912]
[1729795053835,4.84360088,2528.0,2527.6,6.08937857]
[1729795054133,4.84360088,2528.0,2527.7,1.02616242]
[1729795054321,4.84360088,2528.0,2527.6,6.08937857]
[1729795054523,4.84360088,2528.0,2527.7,1.02612081]
[1729795054700,3.95611,2527.8,2527.5,0.82539857]
[1729795055023,0.0990222,2527.7,2527.6,1.02613943]
[1729795055239,3.95611,2527.8,2527.6,1.02613943]
[1729795055540,3.95595,2527.9,2527.7,1.02605525]
[1729795055702,0.789,2528.0,2527.6,0.82539857]
[1729795055902,0.09900042,2527.8,2527.7,1.02603821]
[1729795056885,0.09900042,2527.8,2527.6,1.02573057]
[1729795057100,0.09900042,2527.8,2527.5,6.40558394]
[1729795057310,0.09900042,2527.8,2527.6,1.02567654]
[1729795057521,0.09900042,2527.8,2527.7,1.02568856]
[1729795057730,0.09900042,2527.8,2527.6,1.02568856]
[1729795058034,0.09900042,2527.8,2527.5,4.78179857]
[1729795058195,0.09900042,2527.8,2527.6,1.02570145]
[1729795058391,0.09900042,2527.8,2527.5,4.78179857]
[1729795058615,0.09900042,2527.8,2527.6,1.02571301]
[1729795058838,0.09900042,2527.8,2527.7,1.02568247]
[1729795059128,0.09900042,2527.8,2527.7,1.02568517]
[1729795059539,0.09900042,2527.8,2527.5,4.78179857]
[1729795059824,0.09900042,2527.8,2527.6,1.85109611]
[1729795060030,0.09900042,2527.8,2527.7,1.02569754]
[1729795060334,4.74472,2528.0,2527.7,1.02569754]
[1729795060533,0.09802796,2527.8,2527.7,1.02559197]
[1729795060742,4.74472,2528.0,2527.7,1.02559197]
[1729795060952,0.09798222,2527.8,2527.6,4.78170857]
[1729795061112,4.74472,2528.0,2527.7,1.02562147]
[1729795061316,4.74472,2528.0,2527.6,4.78170857]
[1729795061522,4.74472,2528.0,2527.7,1.02560008]
[1729795061724,4.74472,2528.0,2527.6,4.78170857]
[1729795061938,0.01,2528.7,2527.8,3.956]
[1729795061939,4.73722,2528.2,2527.8,3.956]
[1729795062167,6.36100537,2528.2,2527.8,3.956]
[1729795062440,3.95561,2528.1,2527.7,4.76066]
[1729795062635,3.95561,2528.1,2527.8,1.02588102]
[1729795062824,3.95561,2528.1,2527.7,5.58605857]
[1729795063130,3.95561,2528.1,2527.8,1.02588566]
[1729795063330,3.95561,2528.1,2527.7,5.58605857]
[1729795063621,5.57939537,2528.1,2527.8,1.02627598]
[1729795063828,0.09817128,2528.0,2527.7,5.58605857]
[1729795064126,0.09817128,2528.0,2527.8,1.02629949]
[1729795064428,0.09817128,2528.0,2527.7,9.54213857]
[1729795064643,0.09817128,2528.0,2527.8,1.85195757]
[1729795064817,0.09817128,2528.0,2527.9,1.026559]
[1729795064991,0.09817128,2528.0,2527.9,1.02658197]
[1729795067129,0.09817128,2528.0,2527.7,5.58603857]
[1729795067436,0.09817128,2528.0,2527.8,1.85216034]
[1729795067722,0.09817128,2528.0,2527.9,1.02668059]
[1729795072380,0.09817128,2528.0,2527.9,1.02666688]
[1729795073488,6.36103537,2528.2,2527.9,1.02666688]
[1729795073816,2.40558537,2528.2,2527.8,0.82539857]
[1729795074019,4.05144736,2528.1,2527.9,1.02665163]
[1729795074192,4.05144736,2528.1,2527.8,0.82539857]
[1729795074392,4.05144736,2528.1,2527.9,1.0266236]
[1729795074707,4.05144736,2528.1,2527.8,0.82539857]
[1729795074996,4.05144736,2528.1,2527.9,1.02662919]
[1729795075157,4.05144736,2528.1,2527.8,0.82539857]
[1729795075361,4.05144736,2528.1,2527.9,1.02665054]
[1729795075607,4.05144736,2528.1,2527.8,0.82539857]
[1729795075773,4.05144736,2528.1,2527.9,1.02670609]
[1729795075978,4.05144736,2528.1,2527.8,0.82539857]
[1729795076191,4.05144736,2528.1,2527.9,1.02671548]
[1729795076387,4.05144736,2528.1,2527.8,0.82539857]
[1729795076613,4.05144736,2528.1,2527.9,1.0267397]
[1729795076892,4.05144736,2528.1,2527.8,0.82539857]
[1729795077107,4.05144736,2528.1,2527.9,1.02677926]
[1729795077273,4.05144736,2528.1,2527.8,0.82539857]
[1729795077466,4.05144736,2528.1,2527.9,1.0267486]
[1729795077666,4.05144736,2528.1,2527.8,0.82539857]
[1729795077868,4.05144736,2528.1,2527.9,1.02681067]
[1729795078068,4.05144736,2528.1,2527.8,0.82539857]
[1729795078398,4.05144736,2528.1,2527.9,1.02681195]
[1729795078598,4.05144736,2528.1,2527.8,0.82539857]
[1729795078801,4.05144736,2528.1,2527.9,1.02680546]
[1729795079108,4.05144736,2528.1,2527.8,0.82539857]
[1729795079419,4.05144736,2528.1,2527.9,1.026796]
[1729795079564,4.05144736,2528.1,2527.8,0.82539857]
[1729795079771,4.05144736,2528.1,2527.9,1.02679375]
[1729795080005,4.05144736,2528.1,2527.8,0.82539857]
[1729795080195,4.05144736,2528.1,2527.9,1.02678231]
[1729795080463,0.09590736,2528.1,2528.0,1.02677486]
[1729795080897,3.95531,2528.3,2528.0,1.02677486]
[1729795080898,3.9554,2528.2,2528.0,1.02677486]
[1729795081200,0.09548797,2528.1,2527.9,0.82539857]
[1729795081497,0.09548797,2528.1,2528.0,1.02659841]
[1729795081862,5.57903537,2528.3,2528.0,1.02659841]
[1729795082061,0.09542051,2528.1,2527.9,4.78122857]
[1729795082276,5.57903537,2528.3,2528.0,1.02653429]
[1729795082506,0.09533007,2528.0,2527.9,5.33122857]
[1729795082705,3.95525,2528.3,2527.9,6.35776801]
[1729795082866,0.09533007,2528.0,2527.9,5.33122857]
[1729795083068,5.57903537,2528.3,2527.9,6.3577611]
[1729795083263,3.95525,2528.3,2528.0,1.02653253]
[1729795083469,3.95525,2528.3,2527.9,5.33122857]
[1729795083696,7.91056,2528.3,2528.0,1.02641066]
[1729795083911,5.57903537,2528.3,2527.9,5.33122857]
[1729795084080,3.95525,2528.3,2527.9,5.33122857]
[1729795084287,3.95525,2528.3,2527.9,4.50583]
[1729795084482,0.09551095,2528.2,2527.9,4.50583]
[1729795084801,3.95525,2528.3,2527.9,4.50583]
[1729795085111,0.09468501,2528.2,2528.0,1.02609337]
[1729795085313,0.09468501,2528.2,2528.0,3.95569]
[1729795085468,4.77519,2528.4,2528.0,3.95569]
[1729795085668,0.09142195,2528.1,2528.0,3.95569]
[1729795085913,6.39897537,2528.4,2528.0,4.98164846]
[1729795086205,6.39897537,2528.4,2528.1,1.02582232]
[1729795086385,6.39897537,2528.4,2528.0,4.78297616]
[1729795086586,6.39897537,2528.4,2528.1,1.02582159]
[1729795086587,0.09160288,2528.3,2528.1,1.02582159]
[1729795086788,0.09160288,2528.3,2528.0,4.78297616]
[1729795087022,0.09160288,2528.3,2528.1,1.02579639]
[1729795087193,0.09160288,2528.3,2528.0,4.78297616]
[1729795087397,0.09160288,2528.3,2528.1,1.02572893]
[1729795087597,0.09160288,2528.3,2528.0,4.78297616]
[1729795087899,0.09160288,2528.3,2528.1,1.02571724]
[1729795088230,0.09160288,2528.3,2528.1,0.8112]
[1729795088433,3.95494,2528.5,2528.2,1.02556558]
[1729795088611,0.09254208,2528.4,2528.2,3.95536]
[1729795088802,4.70737,2528.6,2528.2,3.95536]
[1729795089002,0.09263249,2528.5,2528.2,3.95536]
[1729795091520,0.09263249,2528.5,2528.4,5.27797]
[1729795091701,4.77497,2528.8,2528.4,6.36365954]
[1729795091897,0.09301341,2528.5,2528.4,5.27797]
[1729795092123,4.775,2528.8,2528.4,5.27797]
[1729795092327,0.09301341,2528.5,2528.4,5.27797]
[1729795092525,4.775,2528.8,2528.4,5.27797]
[1729795092716,0.09301341,2528.5,2528.4,5.27797]
[1729795092915,4.775,2528.8,2528.4,6.36365954]
[1729795093115,0.09305081,2528.5,2528.4,5.27797]
[1729795093324,6.39878537,2528.8,2528.4,1.3229]
[1729795093531,0.09305081,2528.5,2528.2,4.50531]
[1729795093704,5.57868537,2528.6,2528.2,0.55]
[1729795093903,0.0929972,2528.4,2528.2,0.55]
[1729795095079,0.8152,2528.2,2528.0,0.82728616]
[1729795095213,5.57931537,2528.1,2527.8,0.82728616]
[1729795095415,5.57951537,2528.0,2527.7,0.82728616]
[1729795095609,0.09228317,2527.9,2527.8,1.02538792]
[1729795097844,3.95577,2528.0,2527.8,1.02538792]
[1729795098053,0.0921206,2527.9,2527.7,0.82728616]
[1729795098215,0.0921206,2527.9,2527.8,1.0257227]
[1729795098416,3.95555,2528.1,2527.8,1.0257227]
[1729795098614,0.09221105,2528.0,2527.7,4.78343616]